fUST/lending_fUST_20250725
["ID","MTS","AMOUNT","RATE_DAILY","PERIOD"]
[374676763,1753409441107,-460.0,0.00017506,2]
[374676765,1753409441117,-460.0,0.00017506,2]
[374676767,1753409441130,-460.0,0.00017506,2]
[374676769,1753409441144,-465.31223892,0.00017506,2]
[374676771,1753409441153,-461.16948056,0.00017506,2]
[374676773,1753409441162,-460.0,0.00017506,2]
[374676775,1753409441172,-460.0,0.00017506,2]
[374676777,1753409441182,-460.0,0.00017506,2]
[374676779,1753409441192,-462.01432573,0.00017506,2]
[374676781,1753409441201,-460.0,0.00017506,2]
[374676783,1753409441211,-460.0,0.00017506,2]
[374676785,1753409441220,-315.53776274,0.00017506,2]
[374676787,1753409441230,-460.0,0.00017506,2]
[374676789,1753409441239,-461.34114449,0.00017506,2]
[374676791,1753409441248,-460.0,0.00017506,2]
[374676793,1753409441257,-461.55186778,0.00017506,2]
[374676795,1753409441267,-460.0,0.00017506,2]
[374676797,1753409441278,-460.0,0.00017506,2]
[374676799,1753409441287,-461.47201897,0.00017506,2]
[374676801,1753409441297,-460.0,0.00017506,2]
[374676803,1753409441306,-463.60591295,0.00017506,2]
[374676805,1753409441316,-502.37617633,0.00017506,2]
[374676807,1753409441326,-460.0,0.00017506,2]
[374676809,1753409441336,-460.0,0.00017506,2]
[374676812,1753409441345,-460.0,0.00017506,2]
[374676814,1753409441354,-401.98769863,0.00017506,2]
[374676815,1753409441364,-460.0,0.00017506,2]
[374676818,1753409441373,-563.35432047,0.00017506,2]
[374676819,1753409441383,-160.30205885,0.00017506,2]
[374676822,1753409441393,-460.0,0.00017506,2]
[374676824,1753409441402,-461.744081,0.00017506,2]
[374676826,1753409441411,-460.0,0.00017506,2]
[374676827,1753409441421,-460.0,0.00017506,2]
[374676830,1753409441430,-460.0,0.00017506,2]
[374676832,1753409441440,-467.47727943,0.00017506,2]
[374676834,1753409441449,-500.0,0.00017506,2]
[374676836,1753409441458,-500.0,0.00017506,2]
[374676838,1753409441468,-500.0,0.00017506,2]
[374676840,1753409441478,-460.0,0.00017506,2]
[374676842,1753409441487,-461.42123763,0.00017506,2]
[374676844,1753409441497,-460.0,0.00017506,2]
[374676846,1753409441506,-462.75400833,0.00017506,2]
[374676848,1753409441516,-460.0,0.00017506,2]
[374676850,1753409441527,-460.0,0.00017506,2]
[374676852,1753409441537,-156.01746237,0.00017506,2]
[374676854,1753409441546,-464.303557,0.00017506,2]
[374676856,1753409441556,-461.93897777,0.00017506,2]
[374676858,1753409441565,-460.0,0.00017506,2]
[374676860,1753409441575,-1405.99,0.00017506,2]
[374676862,1753409441584,-463.15510816,0.00017506,2]
[374676864,1753409441594,-460.0,0.00017506,2]
[374676866,1753409441604,-460.0,0.00017506,2]
[374676868,1753409441614,-462.50194628,0.00017506,2]
[374676870,1753409441623,-460.0,0.00017506,2]
[374676872,1753409441634,-506.75,0.00017506,2]
[374676874,1753409441643,-282.96985531,0.00017506,2]
[374676876,1753409441653,-463.72405297,0.00017506,2]
[374676878,1753409441663,-461.22429705,0.00017506,2]
[374676880,1753409441673,-460.0,0.00017506,2]
[374676882,1753409441683,-460.0,0.00017506,2]
[374676884,1753409441692,-462.80401775,0.00017506,2]
[374676886,1753409441702,-460.0,0.00017506,2]
[374676888,1753409441711,-497.95,0.00017506,2]
[374676890,1753409441721,-460.0,0.00017506,2]
[374676892,1753409441730,-460.0,0.00017506,2]
[374676894,1753409441740,-468.34,0.00017506,2]
[374676896,1753409441749,-463.97983337,0.00017506,2]
[374676898,1753409441758,-461.8369499,0.00017506,2]
[374676900,1753409441768,-542.69,0.00017506,2]
[374676902,1753409441778,-460.0,0.00017506,2]
[374676904,1753409441788,-465.03,0.00017506,2]
[374676906,1753409441797,-460.0,0.00017506,2]
[374676908,1753409441807,-464.39755925,0.00017506,2]
[374676910,1753409441817,-460.0,0.00017506,2]
[374676912,1753409441826,-461.95307922,0.00017506,2]
[374676914,1753409441835,-461.06610935,0.00017506,2]
[374676916,1753409441845,-465.21035258,0.00017506,2]
[374676918,1753409441854,-460.0,0.00017506,2]
[374676920,1753409441864,-460.0,0.00017506,2]
[374676922,1753409441874,-460.0,0.00017506,2]
[374676924,1753409441883,-460.0,0.00017506,2]
[374676926,1753409441892,-460.0,0.00017506,2]
[374676928,1753409441903,-465.53209997,0.00017506,2]
[374676930,1753409441912,-460.0,0.00017506,2]
[374676932,1753409441921,-426.54342863,0.00017506,2]
[374676934,1753409441931,-500.0,0.00017508,2]
[374676936,1753409441941,-500.0,0.00017508,2]
[374676938,1753409441950,-500.0,0.00017508,2]
[374676940,1753409441960,-204.57897024,0.00017509,2]
[374676942,1753409441969,-463.05228028,0.00017509,2]
[374676943,1753409441979,-463.04868933,0.00017509,2]
[374676944,1753409441988,-461.42144976,0.00017509,2]
[374676945,1753409441998,-575.66,0.00017509,2]
[374676946,1753409442008,-460.0,0.00017509,2]
[374676947,1753409442018,-461.47664032,0.00017509,2]
[374676948,1753409442028,-460.0,0.00017509,2]
[374676949,1753409442038,-460.0,0.00017509,2]
[374676950,1753409442047,-460.0,0.00017509,2]
[374676951,1753409442057,-460.0,0.00017509,2]
[374676952,1753409442067,-462.4390113,0.00017509,2]
[374676953,1753409442077,-463.33193485,0.00017509,2]
[374676954,1753409442087,-463.33616032,0.00017509,2]
[374676955,1753409442096,-507.48589138,0.00017509,2]
[374676956,1753409442106,-200.35267815,0.00017509,2]
[374676957,1753409442115,-460.0,0.00017509,2]
[374676958,1753409442130,-461.74908451,0.00017509,2]
[374676959,1753409442139,-463.02200572,0.00017509,2]
[374676960,1753409442148,-262.615946,0.00017509,2]
[374676961,1753409442158,-460.0,0.00017509,2]
[374676962,1753409442167,-460.0,0.00017509,2]
[374676963,1753409442176,-460.0,0.00017509,2]
[374676964,1753409442185,-461.4528494,0.00017509,2]
[374676965,1753409442194,-460.0,0.00017509,2]
[374676968,1753409442206,-460.0,0.00017509,2]
[374676970,1753409442226,-460.0,0.00017509,2]
[374676972,1753409442236,-591.67124093,0.00017509,2]
[374676974,1753409442246,-460.0,0.00017509,2]
[374676976,1753409442256,-460.0,0.00017509,2]
[374676978,1753409442266,-277.44758321,0.00017509,2]
[374676980,1753409442275,-460.0,0.00017509,2]
[374676981,1753409442285,-460.0,0.00017509,2]
[374676983,1753409442295,-369.34422688,0.00017509,2]
[374676985,1753409442305,-461.29683053,0.00017509,2]
[374676986,1753409442315,-463.29681817,0.00017509,2]
[374676987,1753409442325,-460.56798748,0.00017509,2]
[374676988,1753409442335,-642.54,0.00017509,2]
[374676989,1753409442344,-460.0,0.00017509,2]
[374676990,1753409442355,-461.98181672,0.00017509,2]
[374676991,1753409442365,-460.69864325,0.00017509,2]
[374676992,1753409442374,-461.50815763,0.00017509,2]
[374676993,1753409442385,-461.13940761,0.00017509,2]
[374676994,1753409442394,-461.01559279,0.00017509,2]
[374676995,1753409442405,-460.0,0.00017509,2]
[374676997,1753409442415,-461.55120227,0.00017509,2]
[374676998,1753409442425,-462.56862645,0.00017509,2]
[374676999,1753409442435,-460.0,0.00017509,2]
[374677000,1753409442445,-506.11791154,0.00017509,2]
[374677001,1753409442455,-460.0,0.00017509,2]
[374677002,1753409442465,-460.0,0.00017509,2]
[374677003,1753409442474,-465.28914722,0.00017509,2]
[374677004,1753409442485,-460.0,0.00017509,2]
[374677005,1753409442494,-460.0,0.00017509,2]
[374677006,1753409442504,-460.0,0.00017509,2]
[374677007,1753409442514,-460.0,0.00017509,2]
[374677009,1753409442525,-532.35314619,0.00017509,2]
[374677011,1753409442536,-463.14749529,0.00017509,2]
[374677013,1753409442545,-460.0,0.00017509,2]
[374677015,1753409442555,-460.0,0.00017509,2]
[374677017,1753409442564,-460.0,0.00017509,2]
[374677019,1753409442574,-460.0,0.00017509,2]
[374677021,1753409442583,-460.0,0.00017509,2]
[374677023,1753409442593,-463.57125146,0.00017509,2]
[374677025,1753409442602,-460.0,0.00017509,2]
[374677027,1753409442611,-460.0,0.00017509,2]
[374677029,1753409442621,-460.0,0.00017509,2]
[374677031,1753409442631,-460.0,0.00017509,2]
[374677032,1753409442640,-460.0,0.00017509,2]
[374677033,1753409442650,-460.0,0.00017509,2]
[374677034,1753409442660,-460.0,0.00017509,2]
[374677035,1753409442669,-460.0,0.00017509,2]
[374677036,1753409442678,-460.0,0.00017509,2]
[374677037,1753409442688,-460.0,0.00017509,2]
[374677038,1753409442698,-630.85,0.00017509,2]
[374677039,1753409442708,-460.0,0.00017509,2]
[374677040,1753409442718,-460.0,0.00017509,2]
[374677041,1753409442728,-460.0,0.00017509,2]
[374677042,1753409442738,-460.0,0.00017509,2]
[374677043,1753409442748,-463.82061342,0.00017509,2]
[374677044,1753409442758,-461.96361122,0.00017509,2]
[374677045,1753409442768,-464.39734225,0.00017509,2]
[374677046,1753409442779,-460.0,0.00017509,2]
[374677048,1753409442788,-461.62499839,0.00017509,2]
[374677050,1753409442797,-353.90968715,0.00017509,2]
[374677052,1753409442807,-460.0,0.00017509,2]
[374677054,1753409442817,-461.89500775,0.00017509,2]
[374677055,1753409442830,-460.0,0.00017509,2]
[374677056,1753409442840,-797.28,0.00017509,2]
[374677057,1753409442850,-462.38303758,0.00017509,2]
[374677058,1753409442860,-460.0,0.00017509,2]
[374677059,1753409442870,-359.70626048,0.00017509,2]
[374677060,1753409442880,-462.18637666,0.00017509,2]
[374677061,1753409442891,-500.0,0.00017511,2]
[374677062,1753409442902,-597.38114223,0.00017511,2]
[374677063,1753409442912,-460.0,0.00017513,2]
[374677064,1753409442922,-460.0,0.00017513,2]
[374677065,1753409442932,-460.0,0.00017513,2]
[374677066,1753409442942,-460.0,0.00017513,2]
[374677067,1753409442952,-460.0,0.00017513,2]
[374677068,1753409442962,-370.28754068,0.00017675,2]
[374677069,1753409442972,-500.0,0.00017773,2]
[374677070,1753409442982,-460.0,0.00017775,2]
[374677071,1753409442992,-592.90218151,0.00017775,2]
[374677072,1753409443002,-463.11644924,0.00017775,2]
[374677073,1753409443012,-6424.16,0.00017775,2]
[374677074,1753409443022,-460.0,0.00017775,2]
[374677075,1753409443032,-462.98968422,0.00017775,2]
[374677076,1753409443044,-460.0,0.00017775,2]
[374677077,1753409443053,-460.0,0.00017775,2]
[374677078,1753409443063,-460.0,0.00017775,2]
[374677079,1753409443073,-564.63,0.00017775,2]
[374677080,1753409443083,-2336.59,0.00017775,2]
[374677081,1753409443093,-460.0,0.00017775,2]
[374677082,1753409443103,-471.45,0.00017775,2]
[374677083,1753409443113,-460.0,0.00017775,2]
[374677084,1753409443126,-460.0,0.00017775,2]
[374677086,1753409443136,-497.13,0.00017775,2]
[374677087,1753409443145,-2700.29,0.00017775,2]
[374677090,1753409443155,-460.0,0.00017775,2]
[374677092,1753409443165,-162.15454695,0.00017775,2]
[374677094,1753409443175,-460.0,0.00017775,2]
[374677097,1753409443185,-460.0,0.00017776,2]
[374677098,1753409443197,-506.9761207,0.00017776,2]
[374677099,1753409443206,-460.0,0.00017776,2]
[374677100,1753409443216,-499.17,0.00017776,2]
[374677101,1753409443226,-460.0,0.00017776,2]
[374677102,1753409443235,-557.44,0.00017776,2]
[374677103,1753409443245,-460.0,0.00017776,2]
[374677104,1753409443254,-460.0,0.00017776,2]
[374677105,1753409443264,-460.0,0.00017776,2]
[374677106,1753409443274,-470.07565638,0.00017776,2]
[374677107,1753409443283,-460.0,0.00017776,2]
[374677108,1753409443295,-466.46978725,0.00017776,2]
[374677109,1753409443305,-498.75984742,0.00017776,2]
[374677110,1753409443315,-475.11987941,0.00017776,2]
[374677111,1753409443325,-460.0,0.00017776,2]
[374677112,1753409443334,-586.03688139,0.00017776,2]
[374677113,1753409443344,-460.0,0.00017776,2]
[374677114,1753409443354,-460.0,0.00017776,2]
[374677115,1753409443364,-460.0,0.00017776,2]
[374677116,1753409443374,-465.04640503,0.00017776,2]
[374677117,1753409443384,-572.11,0.00017776,2]
[374677118,1753409443394,-460.0,0.00017776,2]
[374677119,1753409443404,-460.0,0.00017776,2]
[374677120,1753409443413,-460.0,0.00017776,2]
[374677121,1753409443424,-460.0,0.00017776,2]
[374677122,1753409443434,-460.0,0.00017776,2]
[374677123,1753409443443,-537.54045206,0.00017776,2]
[374677124,1753409443453,-2158.4,0.00017776,2]
[374677126,1753409443463,-460.0,0.00017776,2]
[374677127,1753409443473,-578.19,0.00017776,2]
[374677128,1753409443483,-1022.05,0.00017776,2]
[374677129,1753409443492,-460.0,0.00017776,2]
[374677130,1753409443502,-460.0,0.00017776,2]
[374677131,1753409443512,-586.06,0.00017776,2]
[374677132,1753409443709,-469.3917879,0.00017776,2]
[374677133,1753409443720,-460.0,0.00017776,2]
[374677134,1753409443730,-460.0,0.00017776,2]
[374677135,1753409443739,-460.0,0.00017776,2]
[374677136,1753409443749,-1123.36,0.00017776,2]
[374677137,1753409443758,-460.0,0.00017776,2]
[374677138,1753409443768,-770.54,0.00017776,2]
[374677139,1753409443778,-665.53,0.00017776,2]
[374677140,1753409443787,-466.10632188,0.00017776,2]
[374677141,1753409443797,-3950.3,0.00017776,2]
[374677142,1753409443806,-460.0,0.00017776,2]
[374677143,1753409443815,-460.0,0.00017776,2]
[374677144,1753409443824,-460.0,0.00017776,2]
[374677145,1753409443834,-808.0,0.00017776,2]
[374677146,1753409443843,-463.78579144,0.00017776,2]
[374677147,1753409443852,-563.37,0.00017776,2]
[374677148,1753409443862,-531.0,0.00017776,2]
[374677149,1753409443872,-816.24,0.00017776,2]
[374677150,1753409443881,-460.0,0.00017776,2]
[374677151,1753409443890,-460.0,0.00017776,2]
[374677152,1753409443900,-619.53,0.00017776,2]
[374677153,1753409443909,-647.37,0.00017776,2]
[374677154,1753409443918,-840.74,0.00017776,2]
[374677155,1753409443928,-460.0,0.00017776,2]
[374677156,1753409443937,-1323.28,0.00017776,2]
[374677157,1753409443947,-463.91694298,0.00017776,2]
[374677158,1753409443957,-463.13262049,0.00017776,2]
[374677159,1753409443966,-463.33021124,0.00017776,2]
[374677160,1753409443975,-460.0,0.00017776,2]
[374677161,1753409443985,-3171.19,0.00017776,2]
[374677162,1753409443995,-460.0,0.00017776,2]
[374677164,1753409444004,-460.0,0.00017776,2]
[374677166,1753409444014,-462.53825071,0.00017776,2]
[374677168,1753409444023,-460.0,0.00017776,2]
[374677170,1753409444033,-460.0,0.00017776,2]
[374677172,1753409444042,-460.0,0.00017776,2]
[374677174,1753409444052,-1309.34,0.00017776,2]
[374677176,1753409444061,-5361.29,0.00017776,2]
[374677178,1753409444070,-460.0,0.00017776,2]
[374677180,1753409444080,-465.12329507,0.00017776,2]
[374677182,1753409444089,-460.0,0.00017776,2]
[374677184,1753409444098,-465.40460663,0.00017776,2]
[374677186,1753409444107,-460.0,0.00017776,2]
[374677188,1753409444116,-460.0,0.00017776,2]
[374677189,1753409444127,-460.0,0.00017776,2]
[374677191,1753409444137,-204.00520336,0.00017776,2]
[374677193,1753409444146,-2015.54,0.00017776,2]
[374677195,1753409444156,-460.0,0.00017776,2]
[374677197,1753409444165,-659.98,0.00017776,2]
[374677199,1753409444175,-460.0,0.00017776,2]
[374677200,1753409444184,-460.0,0.00017776,2]
[374677201,1753409444193,-460.0,0.00017776,2]
[374677202,1753409444204,-171.21478151,0.00017776,2]
[374677203,1753409444214,-1687.78,0.00017776,2]
[374677204,1753409444223,-823.12,0.00017776,2]
[374677205,1753409444232,-460.0,0.00017776,2]
[374677206,1753409444241,-460.0,0.00017776,2]
[374677207,1753409444251,-467.5358786,0.00017776,2]
[374677208,1753409444260,-328.60933985,0.00017776,2]
[374677209,1753409444270,-970.64,0.00017776,2]
[374677210,1753409444280,-460.0,0.00017776,2]
[374677211,1753409444288,-460.0,0.00017776,2]
[374677212,1753409444297,-467.17609631,0.00017776,2]
[374677213,1753409444306,-460.0,0.00017777,2]
[374677214,1753409444316,-460.0,0.00017777,2]
[374677215,1753409444325,-460.0,0.00017777,2]
[374677216,1753409444334,-460.0,0.00017777,2]
[374677217,1753409444343,-592.0446281,0.00017777,2]
[374677218,1753409444353,-460.0,0.00017777,2]
[374677219,1753409444362,-460.0,0.00017777,2]
[374677220,1753409444371,-470.07302142,0.00017777,2]
[374677221,1753409444380,-460.0,0.00017777,2]
[374677222,1753409444390,-460.0,0.00017777,2]
[374677223,1753409444399,-465.01928461,0.00017777,2]
[374677224,1753409444408,-460.0,0.00017777,2]
[374677225,1753409444416,-460.0,0.00017777,2]
[374677226,1753409444425,-692.09,0.00017777,2]
[374677227,1753409444435,-715.95,0.00017777,2]
[374677228,1753409444444,-466.23696874,0.00017777,2]
[374677229,1753409444453,-460.0,0.00017777,2]
[374677230,1753409444462,-430.19800023,0.00017777,2]
[374677231,1753409444471,-460.0,0.00017777,2]
[374677232,1753409444480,-654.37,0.00017777,2]
[374677233,1753409444489,-460.0,0.00017777,2]
[374677234,1753409444498,-460.0,0.00017777,2]
[374677235,1753409444507,-460.0,0.00017777,2]
[374677236,1753409444517,-460.0,0.00017777,2]
[374677237,1753409444527,-531.53,0.00017777,2]
[374677238,1753409444536,-586.72457532,0.00017777,2]
[374677239,1753409444546,-1116.45,0.00017777,2]
[374677241,1753409444556,-797.93,0.00017777,2]
[374677243,1753409444565,-468.99282521,0.00017777,2]
[374677244,1753409444575,-460.0,0.00017777,2]
[374677245,1753409444584,-460.0,0.00017777,2]
[374677246,1753409444593,-467.70420145,0.00017777,2]
[374677247,1753409444603,-463.72938753,0.00017777,2]
[374677248,1753409444612,-326.20827054,0.00017777,2]
[374677250,1753409444622,-460.0,0.00017777,2]
[374677252,1753409444632,-460.0,0.00017777,2]
[374677254,1753409444641,-460.0,0.00017777,2]
[374677256,1753409444650,-460.0,0.00017777,2]
[374677257,1753409444660,-460.0,0.00017777,2]
[374677258,1753409444669,-460.0,0.00017777,2]
[374677259,1753409444679,-460.0,0.00017777,2]
[374677260,1753409444688,-460.0,0.00017777,2]
[374677261,1753409444697,-1134.46,0.00017777,2]
[374677262,1753409444707,-500.0,0.00017777,2]
[374677263,1753409444716,-902.66,0.00017777,2]
[374677264,1753409444726,-1939.11,0.00017777,2]
[374677265,1753409444735,-200.97507532,0.00017777,2]
[374677266,1753409444745,-533.38,0.00017777,2]
[374677267,1753409444754,-460.0,0.00017777,2]
[374677268,1753409444763,-814.82,0.00017777,2]
[374677269,1753409444774,-460.0,0.00017777,2]
[374677270,1753409444784,-3099.06,0.00017777,2]
[374677271,1753409444793,-460.0,0.00017777,2]
[374677272,1753409444803,-460.0,0.00017777,2]
[374677273,1753409444813,-886.31,0.00017777,2]
[374677274,1753409444822,-2951.01,0.00017777,2]
[374677275,1753409444832,-2930.75,0.00017777,2]
[374677276,1753409444841,-1996.72,0.00017777,2]
[374677277,1753409444851,-1484.63,0.00017777,2]
[374677278,1753409444860,-460.0,0.00017778,2]
[374677279,1753409444869,-811.31,0.00017778,2]
[374677280,1753409444879,-3954.05,0.00017778,2]
[374677281,1753409444888,-2474.25,0.00017778,2]
[374677282,1753409444899,-460.0,0.00017778,2]
[374677283,1753409444908,-460.0,0.0001778,2]
[374677284,1753409444917,-466.80184536,0.0001778,2]
[374677285,1753409444927,-464.00815899,0.0001778,2]
[374677286,1753409444936,-460.0,0.0001778,2]
[374677287,1753409444946,-465.52722052,0.0001778,2]
[374677288,1753409444955,-460.0,0.0001778,2]
[374677289,1753409444965,-460.0,0.0001778,2]
[374677290,1753409444974,-462.31423613,0.0001778,2]
[374677291,1753409444984,-461.65242606,0.0001778,2]
[374677292,1753409444993,-460.0,0.0001778,2]
[374677293,1753409445003,-460.0,0.0001778,2]
[374677294,1753409445013,-460.0,0.0001778,2]
[374677295,1753409445022,-460.0,0.0001778,2]
[374677296,1753409445035,-460.0,0.0001778,2]
[374677297,1753409445044,-460.0,0.0001778,2]
[374677298,1753409445054,-460.0,0.0001778,2]
[374677299,1753409445063,-460.0,0.0001778,2]
[374677300,1753409445073,-461.60138146,0.0001778,2]
[374677301,1753409445082,-460.0,0.0001778,2]
[374677302,1753409445091,-210.27174442,0.0001778,2]
[374677303,1753409445101,-463.43453323,0.0001778,2]
[374677304,1753409445111,-460.0,0.0001778,2]
[374677305,1753409445121,-460.0,0.0001778,2]
[374677306,1753409445134,-460.0,0.0001778,2]
[374677307,1753409445143,-460.0,0.0001778,2]
[374677308,1753409445152,-460.0,0.0001778,2]
[374677309,1753409445162,-1405.99,0.0001778,2]
[374677310,1753409445173,-460.0,0.0001778,2]
[374677311,1753409445183,-460.0,0.0001778,2]
[374677312,1753409445192,-460.0,0.0001778,2]
[374677313,1753409445203,-506.75,0.0001778,2]
[374677314,1753409445213,-460.0,0.0001778,2]
[374677315,1753409445222,-460.0,0.0001778,2]
[374677316,1753409445232,-460.0,0.0001778,2]
[374677317,1753409445241,-497.95,0.0001778,2]
[374677318,1753409445251,-460.0,0.0001778,2]
[374677319,1753409445261,-460.0,0.0001778,2]
[374677320,1753409445270,-468.34,0.0001778,2]
[374677321,1753409445282,-542.69,0.0001778,2]
[374677322,1753409445293,-460.0,0.0001778,2]
[374677323,1753409445302,-465.03,0.0001778,2]
[374677324,1753409445312,-460.0,0.0001778,2]
[374677325,1753409445321,-460.0,0.0001778,2]
[374677326,1753409445331,-477.25501411,0.0001778,2]
[374677327,1753409445340,-460.0,0.0001778,2]
[374677328,1753409445350,-465.15337005,0.0001778,2]
[374677329,1753409445359,-463.71043845,0.0001778,2]
[374677330,1753409445368,-467.42316224,0.0001778,2]
[374677331,1753409445377,-460.0,0.0001778,2]
[374677332,1753409445387,-575.66,0.00017783,2]
[374677333,1753409445397,-298.65827068,0.00017783,2]
[374677334,1753409445407,-460.0,0.00017783,2]
[374677335,1753409445416,-460.0,0.00017783,2]
[374677336,1753409445426,-460.0,0.00017783,2]
[374677337,1753409445435,-541.9623873,0.00017783,2]
[374677338,1753409445445,-460.0,0.00017783,2]
[374677339,1753409445454,-461.48641243,0.00017783,2]
[374677341,1753409445464,-463.89396283,0.00017783,2]
[374677343,1753409445473,-460.0,0.00017783,2]
[374677345,1753409445482,-462.27765866,0.00017783,2]
[374677346,1753409445492,-460.0,0.00017783,2]
[374677347,1753409445501,-460.0,0.00017783,2]
[374677348,1753409445511,-460.0,0.00017783,2]
[374677349,1753409445520,-642.54,0.00017783,2]
[374677350,1753409445531,-462.64752173,0.00017783,2]
[374677352,1753409445541,-463.64234924,0.00017783,2]
[374677353,1753409445550,-468.15984433,0.00017783,2]
[374677354,1753409445559,-460.0,0.00017783,2]
[374677355,1753409445568,-461.79493299,0.00017783,2]
[374677356,1753409445578,-460.0,0.00017783,2]
[374677357,1753409445587,-460.0,0.00017783,2]
[374677358,1753409445596,-460.0,0.00017783,2]
[374677359,1753409445606,-460.0,0.00017783,2]
[374677360,1753409445615,-460.0,0.00017783,2]
[374677361,1753409445624,-460.0,0.00017783,2]
[374677362,1753409445633,-460.0,0.00017783,2]
[374677363,1753409445645,-460.0,0.00017783,2]
[374677364,1753409445654,-460.0,0.00017783,2]
[374677365,1753409445663,-460.0,0.00017783,2]
[374677367,1753409445673,-460.0,0.00017783,2]
[374677369,1753409445683,-460.0,0.00017783,2]
[374677371,1753409445692,-460.0,0.00017783,2]
[374677373,1753409445702,-460.0,0.00017783,2]
[374677375,1753409445713,-460.0,0.00017783,2]
[374677377,1753409445723,-460.0,0.00017783,2]
[374677379,1753409445732,-460.0,0.00017783,2]
[374677381,1753409445742,-630.85,0.00017783,2]
[374677383,1753409445751,-460.0,0.00017783,2]
[374677385,1753409445761,-460.0,0.00017783,2]
[374677387,1753409445770,-466.98506485,0.00017783,2]
[374677388,1753409445781,-463.5700089,0.00017783,2]
[374677390,1753409445790,-460.0,0.00017783,2]
[374677392,1753409445800,-462.72390741,0.00017783,2]
[374677394,1753409445810,-460.0,0.00017783,2]
[374677395,1753409445819,-797.28,0.00017783,2]
[374677396,1753409445828,-460.0,0.00017783,2]
[374677397,1753409445837,-460.0,0.00017787,2]
[374677398,1753409445847,-463.94116251,0.00017787,2]
[374677400,1753409445857,-463.37224121,0.00017787,2]
[374677401,1753409445867,-460.0,0.00017787,2]
[374677403,1753409445876,-460.0,0.00017787,2]
[374677406,1753409445886,-193.6630861,0.00018049,2]
[374677407,1753409445896,-6424.16,0.00018049,2]
[374677409,1753409445905,-460.0,0.00018049,2]
[374677411,1753409445915,-460.0,0.00018049,2]
[374677413,1753409445925,-460.0,0.00018049,2]
[374677415,1753409445935,-460.0,0.00018049,2]
[374677417,1753409445944,-564.63,0.00018049,2]
[374677419,1753409445953,-2336.59,0.00018049,2]
[374677421,1753409445963,-460.0,0.00018049,2]
[374677423,1753409445972,-471.45,0.00018049,2]
[374677425,1753409445981,-460.0,0.00018049,2]
[374677426,1753409445990,-462.41238498,0.00018049,2]
[374677428,1753409446000,-497.13,0.00018049,2]
[374677430,1753409446009,-2700.29,0.00018049,2]
[374677432,1753409446019,-460.0,0.00018049,2]
[374677434,1753409446030,-460.0,0.0001805,2]
[374677436,1753409446040,-499.17,0.0001805,2]
[374677438,1753409446049,-460.0,0.0001805,2]
[374677440,1753409446059,-557.44,0.0001805,2]
[374677441,1753409446069,-460.0,0.0001805,2]
[374677442,1753409446078,-460.0,0.0001805,2]
[374677443,1753409446088,-262.62421411,0.0001805,2]
[374677444,1753409446098,-460.0,0.0001805,2]
[374677445,1753409446107,-460.0,0.0001805,2]
[374677446,1753409446117,-460.0,0.0001805,2]
[374677447,1753409446128,-460.0,0.0001805,2]
[374677448,1753409446139,-460.0,0.0001805,2]
[374677449,1753409446148,-460.0,0.0001805,2]